[Event "Irish International Open 2019"]
[Site "Dublin"]
[Date "2019.04.19"]
[Round "4.22"]
[White "Boyle, Bernard"]
[Black "Horvath, Gabor"]
[Result "0-1"]
[ECO "D02"]
[WhiteElo "1799"]
[BlackElo "2252"]
[Annotator "NA"]
[PlyCount "148"]
[EventDate "2019.02.28"]
[EventType "swiss"]
[EventCountry "IRL"]
[SourceTitle "playchess.com"]
[Source "ChessBase"]
[SourceQuality "1"]
[TimeControl "5400+30"]

1. d4 {[%emt 0:00:00]} Nf6 {[%emt 0:00:00]} 2. Nf3 {[%emt 0:00:00]} d5 {[%emt 0:00:00]} 3. Bf4 {[%emt 0:00:46]} c5 {[%emt 0:00:06]} 4. e3 {[%emt 0:00:17]} Nc6 {[%emt 0:00:07]} 5. c3 {[%emt 0:00:13]} Qb6 {[%emt 0:00:11]} 6. Qc2 {[%emt 0:00:27]} g6 {[%emt 0:00:26]} 7. Nbd2 {[%emt 0:01:36]} Bf5 {[%emt 0:02:36]} 8. dxc5 {[%emt 0:02:04]} Qxc5 {[%emt 0:03:13]} 9. Qb3 {[%emt 0:00:22]} Na5 {[%emt 0:05:03]} 10. Qb5+ {[%emt 0:01:20]} Qxb5 {[%emt 0:00:11]} 11. Bxb5+ {[%emt 0:00:07]} Bd7 {[%emt 0:02:12]} 12. Bxd7+ {[%emt 0:03:22]} Nxd7 {[%emt 0:00:15]} 13. O-O {[%emt 0:02:13]} Bg7 {[%emt 0:02:53]} 14. Bc7 {[%emt 0:07:50]} Nc6 {[%emt 0:01:32]} 15. e4 {[%emt 0:00:41]} dxe4 {[%emt 0:07:05]} 16. Nxe4 {[%emt 0:00:07]} Rc8 {[%emt 0:00:33]} 17. Bg3 {[%emt 0:01:15]} O-O {[%emt 0:01:44]} 18. Rad1 {[%emt 0:01:12]} Rfd8 {[%emt 0:03:06]} 19. h4 {[%emt 0:14:02]} Nde5 {[%emt 0:05:18]} 20. Nxe5 {[%emt 0:01:25]} Nxe5 {[%emt 0:04:48]} 21. Rxd8+ {[%emt 0:06:16]} Rxd8 {[%emt 0:00:09]} 22. h5 {[%emt 0:03:18]} gxh5 {[%emt 0:12:01]} 23. Re1 {[%emt 0:01:25]} Ng6 {[%emt 0:02:15]} 24. a4 {[%emt 0:06:16]} h4 {[%emt 0:15:28]} 25. Bc7 {[%emt 0:00:46]} Rc8 {[%emt 0:00:56]} 26. Ba5 {[%emt 0:01:47]} f5 {[%emt 0:09:44]} 27. Ng5 {[%emt 0:02:02]} Bf6 {[%emt 0:01:17]} 28. Ne6 {[%emt 0:01:39]} b6 {[%emt 0:03:42]} 29. Bb4 {[%emt 0:00:22]} a5 {[%emt 0:00:34]} 30. Ba3 {[%emt 0:00:21]} Rc4 {[%emt 0:03:26]} 31. Nd4 {[%emt 0:01:19]} Bxd4 {[%emt 0:02:26]} 32. cxd4 {[%emt 0:00:06]} Rxd4 {[%emt 0:00:24]} 33. Re6 {[%emt 0:01:32]} Rxa4 {[%emt 0:02:53]} 34. Rxb6 {[%emt 0:00:08]} Kf7 {[%emt 0:04:05]} 35. Ra6 {[%emt 0:06:05]} h6 {[%emt 0:00:46]} 36. Kh2 {[%emt 0:04:26]} e6 {[%emt 0:01:48]} 37. Ra7+ {[%emt 0:00:36]} Kf6 {[%emt 0:00:27]} 38. Ra6 {[%emt 0:01:49]} Ne5 {[%emt 0:01:01]} 39. Ra8 {[%emt 0:01:38]} Ng4+ {[%emt 0:00:49]} 40. Kg1 {[%emt 0:00:49]} Rd4 {[%emt 0:01:23]} 41. Kf1 {[%emt 0:00:46]} Rd5 {[%emt 0:00:27]} 42. Ra7 {[%emt 0:00:32]} Ke5 {[%emt 0:01:25]} 43. Bf8 {[%emt 0:00:51]} Kd4 {[%emt 0:00:32]} 44. Be7 {[%emt 0:02:08]} Kd3 {[%emt 0:00:38]} 45. Rc7 {[%emt 0:01:53]} Rb5 {[%emt 0:01:03]} 46. Ba3 {[%emt 0:00:25]} Kd2 {[%emt 0:00:42]} 47. Rc6 {[%emt 0:02:37]} Re5 {[%emt 0:00:41]} 48. Rd6+ {[%emt 0:00:37]} Kc2 {[%emt 0:00:04]} 49. Rc6+ {[%emt 0:02:01]} Kb3 {[%emt 0:00:09]} 50. Rc3+ {[%emt 0:00:53]} Ka2 {[%emt 0:00:20]} 51. Rh3 {[%emt 0:00:14]} Rd5 {[%emt 0:00:43]} 52. Ke2 {[%emt 0:01:12]} Re5+ {[%emt 0:00:46]} 53. Kf1 {[%emt 0:00:15]} Rb5 {[%emt 0:00:29]} 54. Rxh4 {[%emt 0:01:16]} e5 {[%emt 0:00:50]} 55. Ke2 {[%emt 0:00:32]} e4 {[%emt 0:00:20]} 56. f3 {[%emt 0:00:37]} exf3+ {[%emt 0:00:03]} 57. gxf3 {[%emt 0:01:26]} Ne5 {[%emt 0:00:05]} 58. Ra4 {[%emt 0:07:21]} Kb3 {[%emt 0:00:20]} 59. Rd4 {[%emt 0:01:38]} Nc4 {[%emt 0:00:41]} 60. Rd3+ {[%emt 0:00:52]} Ka2 {[%emt 0:00:26]} 61. Bf8 {[%emt 0:00:38]} Rxb2+ {[%emt 0:01:19]} 62. Kd1 {[%emt 0:00:52]} Rb3 {[%emt 0:00:15]} 63. Rxb3 {[%emt 0:01:13]} Kxb3 {[%emt 0:00:14]} 64. Bxh6 {[%emt 0:00:21]} a4 {[%emt 0:01:23]} 65. Bf8 {[%emt 0:02:28]} a3 {[%emt 0:00:43]} 66. Bxa3 {[%emt 0:00:42]} Nxa3 {[%emt 0:00:12]} 67. Kd2 {[%emt 0:00:30]} Kc4 {[%emt 0:00:05]} 68. Ke3 {[%emt 0:00:26]} Kd5 {[%emt 0:00:03]} 69. f4 {[%emt 0:01:32]} Nc4+ {[%emt 0:00:12]} 70. Kd3 {[%emt 0:00:20]} Nd6 {[%emt 0:00:17]} 71. Ke3 {[%emt 0:00:12]} Kc4 {[%emt 0:00:03]} 72. Ke2 {[%emt 0:00:43]} Kd4 {[%emt 0:00:09]} 73. Kf3 {[%emt 0:00:15]} Kd3 {[%emt 0:00:06]} 74. Kf2 {[%emt 0:00:53]} Ke4 {[%emt 0:00:05]} 0-1

[Event "Irish International Open 2019"]
[Site "Dublin"]
[Date "2019.04.19"]
[Round "4.23"]
[White "Scott, Luke"]
[Black "Reprun, Nadejda"]
[Result "0-1"]
[ECO "D17"]
[WhiteElo "1881"]
[BlackElo "1995"]
[Annotator "NA"]
[PlyCount "46"]
[EventDate "2019.02.28"]
[EventType "swiss"]
[EventCountry "IRL"]
[SourceTitle "playchess.com"]
[Source "ChessBase"]
[SourceQuality "1"]
[TimeControl "5400+30"]

1. d4 {[%emt 0:00:00]} d5 {[%emt 0:00:00]} 2. c4 {[%emt 0:00:00]} c6 {[%emt 0:00:00]} 3. Nc3 {[%emt 0:00:00]} Nf6 {[%emt 0:00:00]} 4. Nf3 {[%emt 0:00:00]} dxc4 {[%emt 0:00:00]} 5. a4 {[%emt 0:00:00]} Bf5 {[%emt 0:00:00]} 6. Ne5 {[%emt 0:00:05]} Nbd7 {[%emt 0:00:04]} 7. Nxc4 {[%emt 0:07:11]} Qc7 {[%emt 0:00:20]} 8. f3 {[%emt 0:05:00]} e5 {[%emt 0:06:02]} 9. dxe5 {[%emt 0:09:34]} Nxe5 {[%emt 0:00:29]} 10. e4 {[%emt 0:00:21]} Be6 {[%emt 0:03:01]} 11. Nxe5 {[%emt 0:02:46]} Qxe5 {[%emt 0:00:47]} 12. Be3 {[%emt 0:01:48]} Bb4 {[%emt 0:20:48]} 13. Qc2 {[%emt 0:07:50]} Nd5 {[%emt 0:09:17]} 14. Bd2 {[%emt 0:03:04]} O-O {[%emt 0:03:18]} 15. Be2 {[%emt 0:04:12]} Nf4 {[%emt 0:01:13]} 16. Bxf4 {[%emt 0:07:07]} Qxf4 {[%emt 0:00:07]} 17. O-O {[%emt 0:00:48]} Rad8 {[%emt 0:07:19]} 18. Rad1 {[%emt 0:05:16]} h5 {[%emt 0:00:58]} 19. Rxd8 {[%emt 0:03:49]} Rxd8 {[%emt 0:00:02]} 20. Rd1 {[%emt 0:00:07]} Rxd1+ {[%emt 0:04:21]} 21. Bxd1 {[%emt 0:01:34]} Bc5+ {[%emt 0:01:08]} 22. Kh1 {[%emt 0:02:40]} Qe3 {[%emt 0:03:26]} 23. Ne2 {[%emt 0:00:10]} Bh3 {[%emt 0:06:20]} 0-1

[Event "Irish International Open 2019"]
[Site "Dublin"]
[Date "2019.04.19"]
[Round "4.24"]
[White "Fox, Anthony"]
[Black "Moran, Darragh"]
[Result "1/2-1/2"]
[ECO "C00"]
[WhiteElo "2031"]
[BlackElo "1844"]
[Annotator "NA"]
[PlyCount "55"]
[EventDate "2019.02.28"]
[EventType "swiss"]
[EventCountry "IRL"]
[SourceTitle "playchess.com"]
[Source "ChessBase"]
[SourceQuality "1"]
[TimeControl "5400+30"]

1. e4 {[%emt 0:00:00]} e6 {[%emt 0:00:00]} 2. d3 {[%emt 0:00:00]} d5 {[%emt 0:00:00]} 3. Nd2 {[%emt 0:00:00]} Nf6 {[%emt 0:00:00]} 4. Ngf3 {[%emt 0:00:01]} c5 {[%emt 0:00:00]} 5. g3 {[%emt 0:00:11]} Nc6 {[%emt 0:00:00]} 6. Bg2 {[%emt 0:00:16]} Be7 {[%emt 0:00:00]} 7. O-O {[%emt 0:00:11]} O-O {[%emt 0:00:02]} 8. Re1 {[%emt 0:00:32]} b5 {[%emt 0:00:09]} 9. e5 {[%emt 0:01:34]} Nd7 {[%emt 0:00:35]} 10. h4 {[%emt 0:01:17]} a5 {[%emt 0:01:28]} 11. Nf1 {[%emt 0:00:34]} Qb6 {[%emt 0:00:05]} 12. N1h2 {[%emt 0:02:16]} Ba6 {[%emt 0:00:13]} 13. h5 {[%emt 0:02:36]} Rfc8 {[%emt 0:02:31]} 14. Ng4 {[%emt 0:03:26]} h6 {[%emt 0:01:57]} 15. Bf4 {[%emt 0:02:54]} Bf8 {[%emt 0:01:26]} 16. Bh3 {[%emt 0:08:53]} b4 {[%emt 0:01:16]} 17. Nh4 {[%emt 0:01:23]} c4 {[%emt 0:05:25]} 18. dxc4 {[%emt 0:04:36]} dxc4 {[%emt 0:15:54]} 19. Nxh6+ {[%emt 0:06:56]} gxh6 {[%emt 0:01:17]} 20. Bxe6 {[%emt 0:00:06]} fxe6 {[%emt 0:06:58]} 21. Qg4+ {[%emt 0:04:59]} Kh8 {[%emt 0:06:10]} 22. Qxe6 {[%emt 0:09:19]} Ne7 {[%emt 0:04:59]} 23. Qxd7 {[%emt 0:02:24]} Rd8 {[%emt 0:04:22]} 24. Qg4 {[%emt 0:02:16]} Bb7 {[%emt 0:06:01]} 25. e6 {[%emt 0:02:04]} Qc6 {[%emt 0:02:35]} 26. Kh2 {[%emt 0:07:33]} Bg7 {[%emt 0:01:14]} 27. Rad1 {[%emt 0:02:28]} a4 {[%emt 0:07:17]} 28. Rd7 {[%emt 0:11:04]} 1/2-1/2

[Event "Irish International Open 2019"]
[Site "Dublin"]
[Date "2019.04.19"]
[Round "4.25"]
[White "Mulligan, Scott"]
[Black "Halvorsen, Benjamin"]
[Result "1-0"]
[ECO "A80"]
[WhiteElo "2006"]
[BlackElo "1767"]
[Annotator "NA"]
[PlyCount "27"]
[EventDate "2019.02.28"]
[EventType "swiss"]
[EventCountry "IRL"]
[SourceTitle "playchess.com"]
[Source "ChessBase"]
[SourceQuality "1"]
[TimeControl "5400+30"]

1. d4 {[%emt 0:00:00]} f5 {[%emt 0:00:00]} 2. Qd3 {[%emt 0:00:00]} g6 {[%emt 0:00:28]} 3. g4 {[%emt 0:00:00]} fxg4 {[%emt 0:01:50]} 4. h3 {[%emt 0:00:02]} gxh3 {[%emt 0:02:51]} 5. Nxh3 {[%emt 0:00:08]} d5 {[%emt 0:04:19]} 6. Ng5 {[%emt 0:05:05]} Nf6 {[%emt 0:08:05]} 7. Rxh7 {[%emt 0:04:24]} Bf5 {[%emt 0:08:13]} 8. Rxh8 {[%emt 0:03:20]} Bxd3 {[%emt 0:02:17]} 9. Rxf8+ {[%emt 0:00:56]} Kxf8 {[%emt 0:00:14]} 10. Ne6+ {[%emt 0:00:04]} Ke8 {[%emt 0:01:05]} 11. Nxd8 {[%emt 0:00:03]} Bxc2 {[%emt 0:04:30]} 12. Nxb7 {[%emt 0:02:14]} Nc6 {[%emt 0:00:58]} 13. e3 {[%emt 0:01:41]} e5 {[%emt 0:04:42]} 14. Bb5 {[%emt 0:00:06]} 1-0

[Event "Irish International Open 2019"]
[Site "Dublin"]
[Date "2019.04.19"]
[Round "4.26"]
[White "Cafolla, Peter"]
[Black "Phelan, Leo"]
[Result "0-1"]
[ECO "B20"]
[WhiteElo "1949"]
[BlackElo "1708"]
[Annotator "NA"]
[PlyCount "88"]
[EventDate "2019.02.28"]
[EventType "swiss"]
[EventCountry "IRL"]
[SourceTitle "playchess.com"]
[Source "ChessBase"]
[SourceQuality "1"]
[TimeControl "5400+30"]

1. e4 {[%emt 0:00:00]} c5 {[%emt 0:00:00]} 2. b3 {[%emt 0:00:00]} Nc6 {[%emt 0:01:07]} 3. Bb2 {[%emt 0:00:03]} Nf6 {[%emt 0:01:55]} 4. Nc3 {[%emt 0:00:31]} g6 {[%emt 0:01:10]} 5. f4 {[%emt 0:03:31]} d6 {[%emt 0:01:32]} 6. Nd5 {[%emt 0:11:57]} Bg7 {[%emt 0:05:29]} 7. Nxf6+ {[%emt 0:07:10]} exf6 {[%emt 0:01:13]} 8. Bb5 {[%emt 0:06:33]} O-O {[%emt 0:01:12]} 9. Bxc6 {[%emt 0:00:30]} bxc6 {[%emt 0:00:07]} 10. Nf3 {[%emt 0:03:52]} Re8 {[%emt 0:04:25]} 11. d3 {[%emt 0:00:04]} d5 {[%emt 0:01:02]} 12. Nd2 {[%emt 0:00:23]} dxe4 {[%emt 0:07:01]} 13. dxe4 {[%emt 0:00:09]} Bf5 {[%emt 0:00:12]} 14. O-O {[%emt 0:02:55]} Bxe4 {[%emt 0:02:04]} 15. Nxe4 {[%emt 0:00:07]} Rxe4 {[%emt 0:00:18]} 16. Qxd8+ {[%emt 0:05:24]} Rxd8 {[%emt 0:00:05]} 17. f5 {[%emt 0:01:15]} Rd2 {[%emt 0:07:15]} 18. Rf2 {[%emt 0:02:03]} Rxf2 {[%emt 0:00:46]} 19. Kxf2 {[%emt 0:00:05]} Rf4+ {[%emt 0:00:07]} 20. Kg3 {[%emt 0:00:56]} Rxf5 {[%emt 0:00:10]} 21. c4 {[%emt 0:00:06]} Kf8 {[%emt 0:06:41]} 22. Rd1 {[%emt 0:00:28]} Ke7 {[%emt 0:00:23]} 23. Re1+ {[%emt 0:00:35]} Kd7 {[%emt 0:00:13]} 24. Rd1+ {[%emt 0:00:08]} Kc7 {[%emt 0:00:21]} 25. Bc1 {[%emt 0:08:16]} g5 {[%emt 0:04:17]} 26. Be3 {[%emt 0:03:15]} Bf8 {[%emt 0:01:06]} 27. Kg4 {[%emt 0:00:19]} Re5 {[%emt 0:01:13]} 28. Kf3 {[%emt 0:01:43]} h6 {[%emt 0:03:46]} 29. g4 {[%emt 0:00:38]} Bd6 {[%emt 0:00:47]} 30. h4 {[%emt 0:00:59]} Re6 {[%emt 0:06:12]} 31. h5 {[%emt 0:05:35]} Re5 {[%emt 0:00:40]} 32. Bd2 {[%emt 0:01:54]} f5 {[%emt 0:02:06]} 33. Ba5+ {[%emt 0:04:42]} Kd7 {[%emt 0:00:25]} 34. Bc3 {[%emt 0:00:49]} fxg4+ {[%emt 0:01:34]} 35. Kxg4 {[%emt 0:00:08]} f5+ {[%emt 0:01:22]} 36. Kf3 {[%emt 0:00:11]} Re6 {[%emt 0:01:15]} 37. Rd3 {[%emt 0:03:18]} Ke7 {[%emt 0:05:22]} 38. a3 {[%emt 0:04:43]} g4+ {[%emt 0:01:02]} 39. Kf2 {[%emt 0:00:09]} f4 {[%emt 0:00:27]} 40. b4 {[%emt 0:01:15]} f3 {[%emt 0:01:56]} 41. Rd2 {[%emt 0:00:54]} Bf4 {[%emt 0:01:47]} 42. Rb2 {[%emt 0:02:30]} Re3 {[%emt 0:00:34]} 43. Rc2 {[%emt 0:01:13]} g3+ {[%emt 0:01:04]} 44. Kf1 {[%emt 0:00:05]} Rd3 {[%emt 0:01:21]} 0-1

[Event "Irish International Open 2019"]
[Site "Dublin"]
[Date "2019.04.19"]
[Round "4.27"]
[White "Kersten, Julian"]
[Black "Farrelly, Eoin"]
[Result "1-0"]
[ECO "D00"]
[WhiteElo "1996"]
[BlackElo "1644"]
[Annotator "NA"]
[PlyCount "85"]
[EventDate "2019.02.28"]
[EventType "swiss"]
[EventCountry "IRL"]
[SourceTitle "playchess.com"]
[Source "ChessBase"]
[SourceQuality "1"]
[TimeControl "5400+30"]

1. d4 {[%emt 0:00:00]} d5 {[%emt 0:00:00]} 2. Bg5 {[%emt 0:00:56]} c5 {[%emt 0:02:12]} 3. dxc5 {[%emt 0:00:18]} Qa5+ {[%emt 0:05:56]} 4. Nc3 {[%emt 0:03:22]} e6 {[%emt 0:00:45]} 5. a3 {[%emt 0:03:31]} Qxc5 {[%emt 0:02:44]} 6. Qd2 {[%emt 0:02:26]} Bd6 {[%emt 0:08:24]} 7. Nf3 {[%emt 0:06:50]} Ne7 {[%emt 0:02:11]} 8. e4 {[%emt 0:01:38]} b6 {[%emt 0:21:37]} 9. e5 {[%emt 0:10:00]} Bxe5 {[%emt 0:09:30]} 10. Nxe5 {[%emt 0:00:58]} d4 {[%emt 0:00:50]} 11. Qf4 {[%emt 0:04:22]} f6 {[%emt 0:03:13]} 12. Bb5+ {[%emt 0:12:23]} Nbc6 {[%emt 0:08:12]} 13. Ne4 {[%emt 0:12:04]} Qxe5 {[%emt 0:17:21]} 14. Qxe5 {[%emt 0:02:21]} fxe5 {[%emt 0:14:05]} 15. Bxe7 {[%emt 0:00:26]} Kxe7 {[%emt 0:00:00]} 16. Bxc6 {[%emt 0:00:12]} Rb8 {[%emt 0:00:00]} 17. Bb5 {[%emt 0:00:50]} Bb7 {[%emt 0:00:00]} 18. Bd3 {[%emt 0:00:21]} Rhf8 {[%emt 0:00:00]} 19. O-O {[%emt 0:00:26]} Rf4 {[%emt 0:00:00]} 20. Rae1 {[%emt 0:01:10]} h6 {[%emt 0:00:00]} 21. Nd2 {[%emt 0:01:33]} Rg4 {[%emt 0:00:00]} 22. f3 {[%emt 0:00:45]} Rg5 {[%emt 0:00:00]} 23. Nc4 {[%emt 0:01:15]} Kf6 {[%emt 0:00:00]} 24. Nd6 {[%emt 0:00:19]} Bd5 {[%emt 0:00:00]} 25. Ne4+ {[%emt 0:00:16]} Bxe4 {[%emt 0:00:00]} 26. Rxe4 {[%emt 0:00:12]} Ke7 {[%emt 0:00:02]} 27. Rfe1 {[%emt 0:02:12]} Rc8 {[%emt 0:01:23]} 28. Rxe5 {[%emt 0:00:57]} Rxe5 {[%emt 0:00:10]} 29. Rxe5 {[%emt 0:00:08]} Kd6 {[%emt 0:00:17]} 30. Re4 {[%emt 0:00:21]} e5 {[%emt 0:03:22]} 31. f4 {[%emt 0:00:14]} Re8 {[%emt 0:00:25]} 32. fxe5+ {[%emt 0:00:15]} Rxe5 {[%emt 0:00:07]} 33. Rxe5 {[%emt 0:00:12]} Kxe5 {[%emt 0:00:08]} 34. Kf2 {[%emt 0:00:16]} Kf4 {[%emt 0:00:37]} 35. h3 {[%emt 0:00:38]} a5 {[%emt 0:02:13]} 36. g3+ {[%emt 0:02:13]} Kg5 {[%emt 0:01:04]} 37. Kf3 {[%emt 0:00:02]} h5 {[%emt 0:00:24]} 38. Ke4 {[%emt 0:00:17]} h4 {[%emt 0:00:17]} 39. g4 {[%emt 0:00:04]} Kf6 {[%emt 0:00:59]} 40. Kxd4 {[%emt 0:00:11]} Kg5 {[%emt 0:00:40]} 41. Ke4 {[%emt 0:00:14]} Kf6 {[%emt 0:00:06]} 42. b4 {[%emt 0:00:21]} axb4 {[%emt 0:00:22]} 43. axb4 {[%emt 0:00:02]} 1-0

[Event "Irish International Open 2019"]
[Site "Dublin"]
[Date "2019.04.20"]
[Round "5.5"]
[White "Thorfinnsson, Bjorn"]
[Black "Mihalik, Agoston"]
[Result "1-0"]
[ECO "A20"]
[WhiteElo "2399"]
[BlackElo "2203"]
[Annotator "NA"]
[PlyCount "33"]
[EventDate "2019.02.28"]
[EventType "swiss"]
[EventCountry "IRL"]
[SourceTitle "playchess.com"]
[Source "ChessBase"]
[SourceQuality "1"]
[TimeControl "5400+30"]

1. c4 {[%emt 0:00:00]} e5 {[%emt 0:00:00]} 2. g3 {[%emt 0:00:00]} Nf6 {[%emt 0:00:00]} 3. Bg2 {[%emt 0:00:03]} h6 {[%emt 0:00:33]} 4. Nc3 {[%emt 0:00:31]} Bb4 {[%emt 0:00:18]} 5. Qc2 {[%emt 0:01:45]} O-O {[%emt 0:01:28]} 6. Nf3 {[%emt 0:00:57]} Re8 {[%emt 0:01:11]} 7. O-O {[%emt 0:00:20]} Nc6 {[%emt 0:03:34]} 8. e3 {[%emt 0:00:38]} Bxc3 {[%emt 0:17:40]} 9. bxc3 {[%emt 0:08:48]} e4 {[%emt 0:01:06]} 10. Nd4 {[%emt 0:02:22]} b6 {[%emt 0:05:18]} 11. f3 {[%emt 0:01:37]} Bb7 {[%emt 0:06:07]} 12. Nf5 {[%emt 0:01:38]} Ne5 {[%emt 0:12:34]} 13. fxe4 {[%emt 0:00:24]} d6 {[%emt 0:04:13]} 14. d3 {[%emt 0:03:07]} a5 {[%emt 0:04:13]} 15. Qe2 {[%emt 0:03:38]} Ba6 {[%emt 0:04:24]} 16. Bd2 {[%emt 0:01:37]} g6 {[%emt 0:02:34]} 17. Nxh6+ {[%emt 0:25:28]} 1-0

[Event "Irish International Open 2019"]
[Site "Dublin"]
[Date "2019.04.20"]
[Round "5.6"]
[White "Menzies, Colin"]
[Black "Longson, Alexander"]
[Result "0-1"]
[ECO "A11"]
[WhiteElo "2183"]
[BlackElo "2318"]
[Annotator "NA"]
[PlyCount "41"]
[EventDate "2019.02.28"]
[EventType "swiss"]
[EventCountry "IRL"]
[SourceTitle "playchess.com"]
[Source "ChessBase"]
[SourceQuality "1"]
[TimeControl "5400+30"]

1. Nf3 {[%emt 0:00:00]} d5 {[%emt 0:00:00]} 2. c4 {[%emt 0:00:00]} e6 {[%emt 0:00:00]} 3. b3 {[%emt 0:00:00]} Nf6 {[%emt 0:01:16]} 4. Bb2 {[%emt 0:00:00]} Nbd7 {[%emt 0:01:35]} 5. e3 {[%emt 0:00:31]} Bd6 {[%emt 0:00:43]} 6. Be2 {[%emt 0:01:57]} O-O {[%emt 0:00:48]} 7. Nc3 {[%emt 0:01:12]} c6 {[%emt 0:03:37]} 8. Qc2 {[%emt 0:00:53]} a6 {[%emt 0:04:06]} 9. Rg1 {[%emt 0:03:10]} b5 {[%emt 0:12:04]} 10. g4 {[%emt 0:00:25]} bxc4 {[%emt 0:00:59]} 11. bxc4 {[%emt 0:04:52]} Rb8 {[%emt 0:00:10]} 12. g5 {[%emt 0:03:04]} Ne4 {[%emt 0:01:12]} 13. Nxe4 {[%emt 0:09:42]} dxe4 {[%emt 0:00:08]} 14. Nd4 {[%emt 0:00:45]} c5 {[%emt 0:13:33]} 15. Nb3 {[%emt 0:02:53]} a5 {[%emt 0:05:06]} 16. h4 {[%emt 0:25:34]} a4 {[%emt 0:07:12]} 17. Nc1 {[%emt 0:01:05]} Rxb2 {[%emt 0:01:05]} 18. Qxb2 {[%emt 0:01:00]} Be5 {[%emt 0:00:33]} 19. Qb1 {[%emt 0:00:17]} Qc7 {[%emt 0:04:49]} 20. a3 {[%emt 0:01:11]} Bxa1 {[%emt 0:01:55]} 21. Qxa1 {[%emt 0:00:29]} 0-1

[Event "Irish International Open 2019"]
[Site "Dublin"]
[Date "2019.04.20"]
[Round "5.7"]
[White "De Verdier, Michael"]
[Black "Han, Yichen"]
[Result "1-0"]
[ECO "E63"]
[WhiteElo "2306"]
[BlackElo "2190"]
[Annotator "NA"]
[PlyCount "49"]
[EventDate "2019.02.28"]
[EventType "swiss"]
[EventCountry "IRL"]
[SourceTitle "playchess.com"]
[Source "ChessBase"]
[SourceQuality "1"]
[TimeControl "5400+30"]

1. Nf3 {[%emt 0:00:00]} Nf6 {[%emt 0:00:00]} 2. c4 {[%emt 0:00:00]} g6 {[%emt 0:00:00]} 3. g3 {[%emt 0:00:24]} Bg7 {[%emt 0:00:00]} 4. Bg2 {[%emt 0:00:04]} O-O {[%emt 0:00:00]} 5. O-O {[%emt 0:00:46]} d6 {[%emt 0:00:27]} 6. d4 {[%emt 0:01:25]} Nc6 {[%emt 0:03:43]} 7. Nc3 {[%emt 0:02:31]} a6 {[%emt 0:00:37]} 8. b3 {[%emt 0:00:41]} Bd7 {[%emt 0:04:24]} 9. Bb2 {[%emt 0:09:39]} Na5 {[%emt 0:02:04]} 10. Qd2 {[%emt 0:05:03]} c5 {[%emt 0:02:06]} 11. dxc5 {[%emt 0:03:09]} dxc5 {[%emt 0:00:45]} 12. Ne5 {[%emt 0:06:27]} Bc6 {[%emt 0:13:54]} 13. Qxd8 {[%emt 0:02:48]} Rfxd8 {[%emt 0:01:16]} 14. Nxc6 {[%emt 0:00:12]} Nxc6 {[%emt 0:00:08]} 15. Rad1 {[%emt 0:01:50]} Nd7 {[%emt 0:08:01]} 16. Bxc6 {[%emt 0:05:58]} bxc6 {[%emt 0:00:07]} 17. Rd2 {[%emt 0:00:30]} Bxc3 {[%emt 0:05:32]} 18. Bxc3 {[%emt 0:00:02]} Nf6 {[%emt 0:00:14]} 19. f3 {[%emt 0:05:08]} Rd7 {[%emt 0:02:23]} 20. Rxd7 {[%emt 0:02:08]} Nxd7 {[%emt 0:01:19]} 21. Rd1 {[%emt 0:00:12]} Ra7 {[%emt 0:00:05]} 22. Ba5 {[%emt 0:03:03]} Rb7 {[%emt 0:04:35]} 23. Kf2 {[%emt 0:01:56]} f6 {[%emt 0:01:51]} 24. Ke3 {[%emt 0:02:50]} Kf7 {[%emt 0:00:52]} 25. Kd2 {[%emt 0:04:14]} 1-0

[Event "Irish International Open 2019"]
[Site "Dublin"]
[Date "2019.04.20"]
[Round "5.8"]
[White "Li, Henry"]
[Black "McMorrow, John"]
[Result "1/2-1/2"]
[ECO "C95"]
[WhiteElo "2308"]
[BlackElo "2058"]
[Annotator "NA"]
[PlyCount "52"]
[EventDate "2019.02.28"]
[EventType "swiss"]
[EventCountry "IRL"]
[SourceTitle "playchess.com"]
[Source "ChessBase"]
[SourceQuality "1"]
[TimeControl "5400+30"]

1. e4 {[%emt 0:00:00]} e5 {[%emt 0:00:00]} 2. Nf3 {[%emt 0:00:00]} Nc6 {[%emt 0:00:00]} 3. Bb5 {[%emt 0:00:00]} a6 {[%emt 0:00:00]} 4. Ba4 {[%emt 0:00:01]} Nf6 {[%emt 0:00:00]} 5. O-O {[%emt 0:00:10]} b5 {[%emt 0:00:00]} 6. Bb3 {[%emt 0:00:10]} Be7 {[%emt 0:00:00]} 7. Re1 {[%emt 0:00:32]} d6 {[%emt 0:00:00]} 8. c3 {[%emt 0:00:08]} O-O {[%emt 0:00:00]} 9. h3 {[%emt 0:00:05]} Nb8 {[%emt 1:34:30]} 10. d4 {[%emt 0:00:07]} Nbd7 {[%emt 0:00:00]} 11. Nbd2 {[%emt 0:00:05]} Bb7 {[%emt 0:00:00]} 12. Bc2 {[%emt 0:00:10]} Re8 {[%emt 0:00:00]} 13. a4 {[%emt 0:00:14]} c5 {[%emt 0:00:00]} 14. d5 {[%emt 0:02:52]} Qc7 {[%emt 0:00:00]} 15. b3 {[%emt 0:06:43]} bxa4 {[%emt 0:00:00]} 16. bxa4 {[%emt 0:02:26]} a5 {[%emt 0:00:00]} 17. Bd3 {[%emt 0:10:08]} Ba6 {[%emt 0:00:00]} 18. Bxa6 {[%emt 0:02:11]} Rxa6 {[%emt 0:00:00]} 19. Qe2 {[%emt 0:00:17]} Raa8 {[%emt 0:00:00]} 20. Nc4 {[%emt 0:03:01]} Nb6 {[%emt 0:00:00]} 21. Na3 {[%emt 0:05:49]} Reb8 {[%emt 0:00:00]} 22. Nb5 {[%emt 0:04:38]} Qd7 {[%emt 0:00:00]} 23. c4 {[%emt 0:00:24]} Ne8 {[%emt 0:00:00]} 24. Bd2 {[%emt 0:01:54]} Nc7 {[%emt 0:00:00]} 25. Reb1 {[%emt 0:00:53]} Bd8 {[%emt 0:00:00]} 26. Bc3 {[%emt 0:11:01]} f6 {[%emt 0:00:00]} 1/2-1/2

[Event "Irish International Open 2019"]
[Site "Dublin"]
[Date "2019.04.20"]
[Round "5.10"]
[White "Schut, Han"]
[Black "Thorarinsson, Pall A."]
[Result "1/2-1/2"]
[ECO "B09"]
[WhiteElo "2173"]
[BlackElo "2246"]
[Annotator "NA"]
[PlyCount "32"]
[EventDate "2019.02.28"]
[EventType "swiss"]
[EventCountry "IRL"]
[SourceTitle "playchess.com"]
[Source "ChessBase"]
[SourceQuality "1"]
[TimeControl "5400+30"]

1. e4 {[%emt 0:00:00]} d6 {[%emt 0:12:22]} 2. d4 {[%emt 0:00:00]} Nf6 {[%emt 0:01:25]} 3. Nc3 {[%emt 0:00:00]} g6 {[%emt 0:00:04]} 4. f4 {[%emt 0:00:00]} Bg7 {[%emt 0:00:04]} 5. Nf3 {[%emt 0:00:04]} O-O {[%emt 0:00:09]} 6. e5 {[%emt 0:01:23]} Nfd7 {[%emt 0:00:05]} 7. Ne4 {[%emt 0:08:57]} c5 {[%emt 0:02:34]} 8. c3 {[%emt 0:00:21]} cxd4 {[%emt 0:03:36]} 9. cxd4 {[%emt 0:00:07]} Nb6 {[%emt 0:01:21]} 10. Be2 {[%emt 0:05:39]} Nc6 {[%emt 0:11:32]} 11. O-O {[%emt 0:01:39]} Be6 {[%emt 0:01:58]} 12. Qe1 {[%emt 0:05:02]} dxe5 {[%emt 0:02:42]} 13. dxe5 {[%emt 0:00:11]} Nd4 {[%emt 0:00:13]} 14. Bd1 {[%emt 0:10:20]} Rc8 {[%emt 0:06:23]} 15. Qh4 {[%emt 0:18:15]} Bc4 {[%emt 0:03:50]} 16. Re1 {[%emt 0:04:43]} Bxa2 {[%emt 0:02:01]} 1/2-1/2